fUST/lending_fUST_20250522
["ID","MTS","AMOUNT","RATE_DAILY","PERIOD"]
[361929394,1747895448131,-151.0,0.0002376,7]
[361929395,1747895448141,-151.0,0.0002376,7]
[361929396,1747895448151,-151.0,0.0002376,7]
[361929397,1747895448160,-164.688244,0.0002376,7]
[361929398,1747895448169,-151.0,0.0002376,7]
[361929399,1747895448179,-151.0,0.0002376,7]
[361929400,1747895448188,-2845.4133,0.0002376,2]
[361929401,1747895448198,-1130.920556,0.0002376,7]
[361929402,1747895448219,-2585.07311347,0.0002376,2]
[361929403,1747895448484,-260.34018653,0.0002376,2]
[361929404,1747895448499,-1130.920556,0.0002376,7]
[361929405,1747895448515,-2322.675288,0.0002376,7]
[361929406,1747895448529,-323.585952,0.0002376,7]
[361929407,1747895448545,-2322.675288,0.0002376,7]
[361929408,1747895448560,-323.585952,0.0002376,7]
[361929409,1747895448574,-1016.29769984,0.00023792,2]
[361929410,1747895448591,-509.36773416,0.00023792,2]
[361929411,1747895448605,-1003.37702798,0.00023792,2]
[361929412,1747895448621,-26.70158447,0.00023792,2]
[361929413,1747895448713,-167.564301,0.0002376,7]
[361929414,1747895448727,-973.29841553,0.00023792,2]
[361929415,1747895448737,-2293.65861412,0.00023797,9]
[361929416,1747895448746,-151.0,0.000238,5]
[361929417,1747895448756,-151.0,0.000238,6]
[361929418,1747895448765,-1000.0,0.00023803,2]
[361929419,1747895448774,-1000.0,0.00023803,2]
[361929420,1747895448784,-1000.0,0.00023831,2]
[361929421,1747895448793,-638.20879264,0.00023831,2]
[361929422,1747895448803,-1001.12886528,0.00023831,2]
[361929423,1747895448812,-151.0,0.00023831,7]
[361929424,1747895448821,-151.414947,0.00023831,7]
[361929425,1747895448831,-249.237291,0.00023831,7]
[361929426,1747895448841,-249.237291,0.00023831,7]
[361929427,1747895448850,-151.0,0.00023835,7]
[361929428,1747895448860,-430.0,0.00023835,2]
[361929429,1747895448869,-551.25641018,0.00023835,2]
[361929430,1747895448879,-430.0,0.00023835,2]
[361929431,1747895448889,-350.96154312,0.00023835,2]
[361929432,1747895449215,-430.0,0.00021917,2]
[361929433,1747895449225,-2813.68867907,0.0002224,2]
[361929434,1747895449235,-167.564301,0.00023287,7]
[361929435,1747895449245,-167.564301,0.0002376,7]
[361929436,1747895449255,-79.03845688,0.00023835,2]
[361929437,1747895449265,-151.0,0.00023835,7]
[361929438,1747895449275,-151.0,0.00023835,7]
[361929439,1747895449285,-430.0,0.00023835,2]
[361929440,1747895449295,-430.0,0.00023835,2]
[361929441,1747895449305,-586.49,0.00023835,2]
[361929442,1747895449315,-483.09,0.00023835,2]
[361929443,1747895449324,-430.0,0.00023835,2]
[361929444,1747895449334,-430.0,0.00023835,2]
[361929445,1747895449344,-171.69,0.00023835,2]
[361929446,1747895449354,-459.52159066,0.00023835,2]
[361929447,1747895449364,-430.0,0.00023835,2]
[361929448,1747895449373,-1410.72,0.00023835,2]
[361929449,1747895449383,-430.0,0.00023835,2]
[361929450,1747895449392,-430.0,0.00023835,2]
[361929451,1747895449402,-430.0,0.00023835,2]
[361929452,1747895449412,-430.0,0.00023835,2]
[361929453,1747895449421,-430.0,0.00023835,2]
[361929454,1747895449431,-430.0,0.00023835,2]
[361929455,1747895449441,-430.0,0.00023835,2]
[361929456,1747895449451,-430.0,0.00023835,2]
[361929457,1747895449460,-513.73,0.00023835,2]
[361929458,1747895449470,-779.35,0.00023835,2]
[361929459,1747895449480,-430.0,0.00023835,2]
[361929460,1747895449490,-590.44,0.00023835,2]
[361929461,1747895449499,-430.0,0.00023835,2]
[361929462,1747895449508,-431.99,0.00023835,2]
[361929463,1747895449519,-595.02,0.00023835,2]
[361929464,1747895449535,-430.0,0.00023835,2]
[361929465,1747895449549,-1276.34,0.00023835,2]
[361929466,1747895449558,-430.0,0.00023835,2]
[361929467,1747895449569,-430.0,0.00023835,2]
[361929468,1747895449578,-430.0,0.00023835,2]
[361929469,1747895449592,-430.0,0.00023835,2]
[361929470,1747895449601,-430.0,0.00023835,2]
[361929471,1747895449610,-183.44,0.00023835,2]
[361929472,1747895449620,-430.0,0.00023835,2]
[361929473,1747895449630,-2060.48,0.00023835,2]
[361929474,1747895449640,-430.0,0.00023835,2]
[361929475,1747895449649,-430.0,0.00023835,2]
[361929476,1747895449659,-430.0,0.00023835,2]
[361929477,1747895449669,-430.0,0.00023835,2]
[361929478,1747895449679,-430.0,0.00023835,2]
[361929479,1747895449689,-430.0,0.00023835,2]
[361929480,1747895449698,-753.08,0.00023835,2]
[361929481,1747895449707,-194.4488964,0.00023835,2]
[361929482,1747895449716,-640.12,0.00023835,2]
[361929483,1747895449726,-516.74,0.00023835,2]
[361929484,1747895449735,-430.0,0.00023835,2]
[361929485,1747895449744,-430.0,0.00023835,2]
[361929486,1747895449754,-430.0,0.00023835,2]
[361929487,1747895449763,-179.98910693,0.00023843,2]
[361929488,1747895449773,-661.18075282,0.00023843,2]
[361929489,1747895449782,-417.51151036,0.00023843,2]
[361929490,1747895449792,-358.90605806,0.00023843,2]
[361929491,1747895449801,-1000.0,0.00023843,2]
[361929492,1747895449810,-1000.0,0.00023843,2]
[361929493,1747895449819,-1000.0,0.00023843,2]
[361929494,1747895449828,-1000.0,0.00023843,2]
[361929495,1747895449838,-1000.0,0.00023843,2]
[361929496,1747895449847,-500.0,0.00023864,2]
[361929497,1747895449856,-349.5,0.0002388,2]
[361929498,1747895449865,-347.725376,0.0002389,2]
[361929499,1747895449873,-166.69772372,0.000239,2]
[361929500,1747895449883,-1746.43765065,0.000239,2]
[361929501,1747895449892,-500.0,0.0002392,2]
[361929502,1747895449901,-1004.65730264,0.00023946,2]
[361929503,1747895449910,-2293.65861412,0.00023969,10]
[361929504,1747895449919,-500.0,0.00023973,2]
[361929505,1747895449929,-151.10108399,0.00023973,2]
[361929506,1747895449938,-503.15731026,0.00023973,2]
[361929507,1747895449951,-600.0,0.00023973,2]
[361929508,1747895449960,-195.58188357,0.00023973,2]
[361929509,1747895449969,-5478.75105597,0.00024,3]
[361929510,1747895449978,-160.0,0.00024,3]
[361929511,1747895449987,-160.0,0.00024,3]
[361929512,1747895449996,-160.0,0.00024,3]
[361929513,1747895450006,-64812.15796984,0.00024,2]
[361929514,1747895450017,-12978.73785787,0.00024,3]
[361929515,1747895450026,-211338.71476995,0.00024,30]
[361929518,1747895543885,155.30774784,7.5e-07,2]
[361929519,1747895543982,155.30774784,7.5e-07,2]
[361929523,1747896053824,157.509292,0.00013699,2]
[361929528,1747896175933,2787.0,0.00027397,120]
[361929529,1747896302389,321.393363,0.00027397,120]
[361929530,1747896359107,-363.44295685,0.00019991,2]
[361929531,1747896406078,-160.74305596,0.00019968,2]
[361929532,1747896420330,-250.0,0.00018235,2]
[361929533,1747896431096,-0.29251755,0.00018235,2]
[361929534,1747896431118,-71.65412669,0.00019968,2]
[361929535,1747896431143,-4636.55704315,0.00019991,2]
[361929536,1747896431166,-1185.4325283,0.00020068,2]
[361929537,1747896431189,-265.914003,0.00020193,2]
[361929538,1747896431212,-310.34342679,0.00020755,2]
[361929539,1747896435638,-379.19778965,0.00018053,2]
[361929540,1747896438343,-214.23070218,0.00018053,2]
[361929541,1747896439095,-2078.96580451,0.00018053,2]
[361929542,1747896440044,-407.41082057,0.00018053,2]
[361929543,1747896441152,-1920.02328784,0.00018053,2]
[361929544,1747896441174,-210.65657321,0.00020755,2]
[361929545,1747896441196,-300.0,0.00020755,2]
[361929546,1747896441218,-300.0,0.00020755,2]
[361929547,1747896441240,-300.0,0.00020756,2]
[361929548,1747896441262,-300.0,0.00020756,2]
[361929549,1747896441283,-300.0,0.00020756,2]
[361929550,1747896441305,-5647.40429055,0.00020757,2]
[361929551,1747896546162,-4633.91622789,0.00020757,2]
[361929552,1747896561087,-2949.8,0.00020757,2]
[361929640,1747896638681,-71.42609986,0.00020757,2]
[361929641,1747896638691,-196.5918975,0.00020816,2]
[361929642,1747896638701,-265.9974,0.00020862,2]
[361929643,1747896638711,-250.0,0.00021216,2]
[361929644,1747896638721,-200.53985225,0.00021715,2]
[361929645,1747896638731,-300.0,0.00021811,2]
[361929646,1747896638740,-300.0,0.00021811,2]
[361929647,1747896638750,-300.0,0.00021915,2]
[361929648,1747896638759,-545.04899541,0.00021916,2]
[361929649,1747896638769,-500.0,0.00021916,2]
[361929650,1747896638778,-500.0,0.00021916,2]
[361929651,1747896638788,-158.01087725,0.00021916,2]
[361929652,1747896638797,-500.0,0.00021916,2]
[361929653,1747896638807,-500.0,0.00021916,2]
[361929654,1747896638816,-500.0,0.00021916,2]
[361929655,1747896638827,-500.0,0.00021916,2]
[361929656,1747896638836,-500.0,0.00021916,2]
[361929657,1747896638847,-258.11360058,0.00021916,2]
[361929658,1747896638857,-500.0,0.00021916,2]
[361929659,1747896638867,-500.0,0.00021916,2]
[361929660,1747896638877,-500.0,0.00021916,2]
[361929661,1747896638887,-500.0,0.00021916,2]
[361929662,1747896638897,-472.90107927,0.00021916,2]
[361929663,1747896638908,-492.30291084,0.00021916,2]
[361929664,1747896638918,-500.0,0.00021916,2]
[361929665,1747896638927,-500.0,0.00021916,2]
[361929666,1747896638937,-500.0,0.00021916,2]
[361929667,1747896638947,-500.0,0.00021916,2]
[361929668,1747896638957,-189.81520825,0.00021916,2]
[361929669,1747896638967,-500.0,0.00021916,2]
[361929670,1747896638979,-500.0,0.00021916,2]
[361929671,1747896638989,-500.0,0.00021916,2]
[361929672,1747896638999,-500.0,0.00021916,2]
[361929673,1747896639009,-500.0,0.00021916,2]
[361929674,1747896639022,-500.0,0.00021916,2]
[361929675,1747896639031,-500.0,0.00021916,2]
[361929676,1747896639041,-500.0,0.00021916,2]
[361929677,1747896639051,-500.0,0.00021916,2]
[361929678,1747896639060,-500.0,0.00021916,2]
[361929679,1747896639070,-500.0,0.00021916,2]
[361929680,1747896639080,-500.0,0.00021916,2]
[361929681,1747896639090,-500.0,0.00021916,2]
[361929682,1747896639099,-500.0,0.00021916,2]
[361929683,1747896639108,-500.0,0.00021916,2]
[361929684,1747896639118,-152.09604292,0.00021916,2]
[361929685,1747896639128,-500.0,0.00021916,2]
[361929686,1747896639137,-500.0,0.00021916,2]
[361929687,1747896639158,-500.0,0.00021916,2]
[361929688,1747896639171,-500.0,0.00021916,2]
[361929689,1747896639181,-500.0,0.00021916,2]
[361929690,1747896639191,-500.0,0.00021916,2]
[361929691,1747896639203,-500.0,0.00021916,2]
[361929692,1747896639212,-500.0,0.00021916,2]
[361929693,1747896639223,-181.84611948,0.00021916,2]
[361929694,1747896639233,-500.0,0.00021916,2]
[361929695,1747896639243,-500.0,0.00021916,2]
[361929696,1747896639254,-500.0,0.00021916,2]
[361929697,1747896639264,-500.0,0.00021916,2]
[361929698,1747896639276,-500.0,0.00021916,2]
[361929699,1747896639286,-500.0,0.00021916,2]
[361929700,1747896639296,-402.75536871,0.00021917,2]
[361929701,1747896639306,-437.23755113,0.00021917,2]
[361929702,1747896639316,-436.76371634,0.00021917,2]
[361929703,1747896639326,-430.0,0.00021917,2]
[361929704,1747896639336,-430.0,0.00021917,2]
[361929705,1747896639347,-430.0,0.00021917,2]
[361929706,1747896639359,-430.0,0.00021917,2]
[361929707,1747896639370,-430.0,0.00021917,2]
[361929708,1747896639381,-370.0,0.00021917,2]
[361929709,1747896639391,-430.0,0.00021917,2]
[361929710,1747896639401,-430.0,0.00021917,2]
[361929711,1747896639411,-430.0,0.00021917,2]
[361929712,1747896639422,-430.0,0.00021917,2]
[361929713,1747896639440,-433.62812338,0.00021917,2]
[361929714,1747896639457,-430.0,0.00021917,2]
[361929715,1747896639473,-400.0,0.00021917,2]
[361929716,1747896639488,-430.0,0.00021917,2]
[361929717,1747896639504,-430.0,0.00021917,2]
[361929718,1747896639517,-430.0,0.00021917,2]
[361929719,1747896639529,-370.0,0.00021917,2]
[361929720,1747896639545,-406.26,0.00021917,2]
[361929721,1747896639559,-430.0,0.00021917,2]
[361929722,1747896639572,-464.89371656,0.00021917,2]
[361929723,1747896639586,-239.42145032,0.00021917,2]
[361929724,1747896639601,-320.0,0.00021917,2]
[361929725,1747896639617,-430.0,0.00021917,2]
[361929726,1747896639632,-538.31024321,0.00021917,2]
[361929727,1747896639648,-423.44,0.00021917,2]
[361929728,1747896639663,-430.0,0.00021917,2]
[361929729,1747896639676,-430.0,0.00021917,2]
[361929730,1747896639688,-435.92375421,0.00021917,2]
[361929731,1747896639702,-430.0,0.00021917,2]
[361929732,1747896639718,-430.0,0.00021917,2]
[361929733,1747896639737,-430.0,0.00021917,2]
[361929734,1747896639752,-430.0,0.00021917,2]
[361929735,1747896639766,-430.0,0.00021917,2]
[361929736,1747896639779,-430.0,0.00021917,2]
[361929737,1747896639793,-430.0,0.00021917,2]
[361929739,1747896639805,-430.0,0.00021917,2]
[361929741,1747896639817,-437.8264552,0.00021917,2]
[361929743,1747896639832,-430.0,0.00021917,2]
[361929744,1747896639843,-500.0,0.00021917,2]
[361929745,1747896639856,-430.0,0.00021917,2]
[361929746,1747896639870,-430.0,0.00021917,2]
[361929747,1747896639884,-430.0,0.00021917,2]
[361929748,1747896639899,-430.0,0.00021917,2]
[361929749,1747896639913,-430.0,0.00021917,2]
[361929750,1747896639927,-430.0,0.00021917,2]
[361929751,1747896639942,-430.0,0.00021917,2]
[361929752,1747896639956,-300.0,0.00021917,2]
[361929753,1747896639972,-430.0,0.00021917,2]
[361929754,1747896639985,-430.0,0.00021917,2]
[361929756,1747896639996,-541.6903197,0.00021917,2]
[361929757,1747896640007,-430.0,0.00021917,2]
[361929758,1747896640020,-430.0,0.00021917,2]
[361929759,1747896640033,-430.0,0.00021917,2]
[361929760,1747896640049,-430.0,0.00021917,2]
[361929761,1747896640065,-430.0,0.00021917,2]
[361929764,1747896640079,-430.0,0.00021917,2]
[361929766,1747896640090,-348.79868588,0.00021917,2]
[361929768,1747896640102,-315.19481354,0.00021917,2]
[361929770,1747896640114,-430.0,0.00021917,2]
[361929773,1747896640128,-430.0,0.00021917,2]
[361929774,1747896640142,-430.0,0.00021917,2]
[361929775,1747896640154,-304.25123012,0.00021917,2]
[361929776,1747896640166,-430.0,0.00021917,2]
[361929777,1747896640177,-430.0,0.00021917,2]
[361929778,1747896640189,-430.0,0.00021917,2]
[361929779,1747896640202,-430.0,0.00021917,2]
[361929780,1747896640215,-400.80650554,0.00021917,2]
[361929781,1747896640229,-500.0,0.00021917,2]
[361929782,1747896640243,-506.66,0.00021917,2]
[361929783,1747896640264,-438.94,0.00021917,2]
[361929785,1747896640277,-430.0,0.00021917,2]
[361929787,1747896640290,-430.0,0.00021917,2]
[361929788,1747896640302,-245.64219334,0.00021917,2]
[361929789,1747896640315,-350.91747707,0.00021917,2]
[361929791,1747896640331,-430.0,0.00021917,2]
[361929792,1747896640343,-430.0,0.00021917,2]
[361929793,1747896640356,-430.0,0.00021917,2]
[361929794,1747896640368,-430.0,0.00021917,2]
[361929795,1747896640381,-430.0,0.00021917,2]
[361929796,1747896640394,-430.0,0.00021917,2]
[361929797,1747896640406,-430.0,0.00021917,2]
[361929798,1747896640419,-430.0,0.00021917,2]
[361929799,1747896640432,-430.0,0.00021917,2]
[361929800,1747896640445,-430.0,0.00021917,2]
[361929801,1747896640458,-430.0,0.00021917,2]
[361929802,1747896640471,-258.61,0.00021917,2]
[361929803,1747896640484,-430.0,0.00021917,2]
[361929804,1747896640497,-430.0,0.00021917,2]
[361929805,1747896640509,-430.0,0.00021917,2]
[361929806,1747896640522,-430.0,0.00021917,2]
[361929807,1747896640534,-430.0,0.00021917,2]
[361929808,1747896640547,-430.0,0.00021917,2]
[361929809,1747896640560,-430.0,0.00021917,2]
[361929810,1747896640572,-430.0,0.00021917,2]
[361929812,1747896640585,-430.0,0.00021917,2]
[361929814,1747896640597,-430.0,0.00021917,2]
[361929815,1747896640610,-430.0,0.00021917,2]
[361929816,1747896640623,-927.45,0.00021917,2]
[361929817,1747896640636,-430.0,0.00021917,2]
[361929818,1747896640648,-430.0,0.00021917,2]
[361929819,1747896640661,-446.02,0.00021917,2]
[361929820,1747896640673,-430.0,0.00021917,2]
[361929821,1747896640685,-430.0,0.00021917,2]
[361929822,1747896640697,-266.59,0.00021917,2]
[361929823,1747896640715,-430.0,0.00021917,2]
[361929824,1747896640728,-430.0,0.00021917,2]
[361929825,1747896640741,-430.0,0.00021917,2]
[361929826,1747896640753,-430.0,0.00021917,2]
[361929827,1747896640765,-430.0,0.00021917,2]
[361929828,1747896640778,-430.0,0.00021917,2]
[361929829,1747896640790,-430.0,0.00021917,2]
[361929830,1747896640802,-430.0,0.00021917,2]
[361929831,1747896640815,-430.0,0.00021917,2]
[361929832,1747896640827,-430.0,0.00021917,2]
[361929833,1747896640843,-430.0,0.00021917,2]
[361929834,1747896640856,-430.0,0.00021917,2]
[361929835,1747896640868,-430.0,0.00021917,2]
[361929836,1747896640881,-430.0,0.00021917,2]
[361929837,1747896640893,-805.2,0.00021917,2]
[361929838,1747896640907,-1207.8,0.00021917,2]
[361929839,1747896640920,-430.0,0.00021917,2]
[361929840,1747896640933,-430.0,0.00021917,2]
[361929841,1747896640946,-618.02,0.00021917,2]
[361929842,1747896640958,-430.0,0.00021917,2]
[361929843,1747896640972,-430.0,0.00021917,2]
[361929844,1747896641153,-430.0,0.00021917,2]
[361929845,1747896641176,-327.67,0.00021917,2]
[361929846,1747896641187,-430.0,0.00021917,2]
[361929847,1747896641197,-430.0,0.00021917,2]
[361929848,1747896641207,-430.0,0.00021917,2]
[361929849,1747896641217,-430.0,0.00021917,2]
[361929850,1747896641227,-430.0,0.00021917,2]
[361929851,1747896641236,-430.0,0.00021917,2]
[361929852,1747896641246,-430.0,0.00021917,2]
[361929853,1747896641258,-430.0,0.00021917,2]
[361929854,1747896641267,-430.0,0.00021917,2]
[361929855,1747896641276,-297.03404986,0.00021917,2]
[361929856,1747896641287,-430.0,0.00021917,2]
[361929857,1747896641296,-430.0,0.00021917,2]
[361929858,1747896641306,-430.0,0.00021917,2]
[361929859,1747896641316,-430.0,0.00021917,2]
[361929860,1747896641326,-430.0,0.00021917,2]
[361929861,1747896641336,-430.0,0.00021917,2]
[361929862,1747896641346,-1681.78,0.00021917,2]
[361929863,1747896641356,-430.0,0.00021917,2]
[361929864,1747896641366,-338.67794015,0.00021917,2]
[361929865,1747896641375,-430.0,0.00021917,2]
[361929866,1747896641385,-430.0,0.00021917,2]
[361929867,1747896641396,-430.0,0.00021917,2]
[361929868,1747896641406,-430.0,0.00021917,2]
[361929869,1747896641415,-430.0,0.00021917,2]
[361929870,1747896641425,-430.0,0.00021917,2]
[361929871,1747896641435,-430.0,0.00021917,2]
[361929872,1747896641445,-430.0,0.00021917,2]
[361929873,1747896641454,-430.0,0.00021917,2]
[361929874,1747896641464,-430.0,0.00021917,2]
[361929875,1747896641474,-430.0,0.00021917,2]
[361929876,1747896641484,-430.0,0.00021917,2]
[361929877,1747896641494,-430.0,0.00021917,2]
[361929878,1747896641505,-1820.83,0.00021917,2]
[361929879,1747896641514,-430.0,0.00021917,2]
[361929880,1747896641523,-265.5705496,0.00021917,2]
[361929881,1747896641532,-430.0,0.00021917,2]
[361929882,1747896641542,-430.0,0.00021917,2]
[361929883,1747896641552,-430.0,0.00021917,2]
[361929884,1747896641562,-430.0,0.00021917,2]
[361929885,1747896641572,-430.0,0.00021917,2]
[361929886,1747896641582,-430.0,0.00021917,2]
[361929887,1747896641591,-430.0,0.00021917,2]
[361929888,1747896641601,-430.0,0.00021917,2]
[361929889,1747896641611,-430.0,0.00021917,2]
[361929890,1747896641621,-430.0,0.00021917,2]
[361929891,1747896641630,-430.0,0.00021917,2]
[361929892,1747896641640,-430.0,0.00021917,2]
[361929893,1747896641650,-430.0,0.00021917,2]
[361929894,1747896641661,-658.95,0.00021917,2]
[361929895,1747896641671,-430.0,0.00021917,2]
[361929896,1747896641682,-430.0,0.00021917,2]
[361929897,1747896641691,-430.0,0.00021917,2]
[361929898,1747896641701,-430.0,0.00021917,2]
[361929899,1747896641711,-430.0,0.00021917,2]
[361929900,1747896641720,-430.0,0.00021917,2]
[361929901,1747896641730,-430.0,0.00021917,2]
[361929902,1747896641739,-430.0,0.00021917,2]
[361929903,1747896641751,-430.0,0.00021917,2]
[361929904,1747896641762,-430.0,0.00021917,2]
[361929905,1747896641771,-430.0,0.00021917,2]
[361929906,1747896641781,-430.0,0.00021917,2]
[361929907,1747896641790,-430.0,0.00021917,2]
[361929908,1747896641800,-430.0,0.00021917,2]
[361929909,1747896641811,-430.0,0.00021917,2]
[361929910,1747896641821,-255.91,0.00021917,2]
[361929911,1747896641832,-649.69,0.00021917,2]
[361929912,1747896641841,-430.0,0.00021917,2]
[361929913,1747896641851,-430.0,0.00021917,2]
[361929914,1747896641861,-430.0,0.00021917,2]
[361929915,1747896641870,-500.0,0.00021918,2]
[361929916,1747896641880,-500.0,0.00021918,2]
[361929917,1747896641890,-500.0,0.00021918,2]
[361929918,1747896641900,-500.0,0.00021918,2]
[361929919,1747896641910,-500.0,0.00021918,2]
[361929920,1747896641920,-500.0,0.00021918,2]
[361929921,1747896641929,-285.35431769,0.00021918,2]
[361929922,1747896641938,-500.0,0.00021918,2]
[361929923,1747896641948,-500.0,0.00021918,2]
[361929924,1747896641958,-500.0,0.00021918,2]
[361929925,1747896641968,-500.0,0.00021918,2]
[361929926,1747896641980,-450.0,0.00021918,2]
[361929927,1747896641989,-500.0,0.00021918,2]
[361929928,1747896641999,-500.0,0.00021918,2]
[361929929,1747896642009,-430.0,0.00022191,2]
[361929930,1747896642018,-430.0,0.00022191,2]
[361929931,1747896642028,-430.0,0.00022191,2]
[361929932,1747896642038,-430.0,0.00022191,2]
[361929933,1747896642048,-430.0,0.00022191,2]
[361929934,1747896642059,-430.0,0.00022191,2]
[361929935,1747896642070,-430.0,0.00022191,2]
[361929936,1747896642081,-430.0,0.00022191,2]
[361929937,1747896642090,-430.0,0.00022191,2]
[361929938,1747896642101,-430.0,0.00022191,2]
[361929939,1747896642110,-430.0,0.00022191,2]
[361929940,1747896642120,-430.0,0.00022191,2]
[361929941,1747896642129,-430.0,0.00022191,2]
[361929942,1747896642139,-430.0,0.00022191,2]
[361929943,1747896642148,-382.68,0.00022191,2]
[361929944,1747896642158,-430.0,0.00022191,2]
[361929945,1747896642168,-430.0,0.00022191,2]
[361929946,1747896642177,-430.0,0.00022191,2]
[361929947,1747896642186,-430.0,0.00022191,2]
[361929948,1747896642195,-430.0,0.00022191,2]
[361929949,1747896642205,-430.0,0.00022191,2]
[361929950,1747896642214,-430.0,0.00022191,2]
[361929951,1747896642225,-430.0,0.00022191,2]
[361929952,1747896642234,-516.36,0.00022191,2]
[361929953,1747896642245,-506.66,0.00022191,2]
[361929954,1747896642257,-438.94,0.00022191,2]
[361929955,1747896642267,-430.0,0.00022191,2]
[361929956,1747896642276,-430.0,0.00022191,2]
[361929957,1747896642286,-430.0,0.00022191,2]
[361929958,1747896642296,-430.0,0.00022191,2]
[361929959,1747896642306,-430.0,0.00022191,2]
[361929960,1747896642315,-430.0,0.00022191,2]
[361929961,1747896642325,-430.0,0.00022191,2]
[361929962,1747896642334,-430.0,0.00022191,2]
[361929963,1747896642344,-430.0,0.00022191,2]
[361929964,1747896642354,-430.0,0.00022191,2]
[361929965,1747896642363,-430.0,0.00022191,2]
[361929966,1747896642373,-430.0,0.00022191,2]
[361929967,1747896642382,-430.0,0.00022191,2]
[361929968,1747896642392,-430.0,0.00022191,2]
[361929969,1747896642402,-430.0,0.00022191,2]
[361929970,1747896642412,-430.0,0.00022191,2]
[361929971,1747896642422,-430.0,0.00022191,2]
[361929972,1747896642431,-430.0,0.00022191,2]
[361929973,1747896642441,-927.45,0.00022191,2]
[361929974,1747896642450,-430.0,0.00022191,2]
[361929975,1747896642460,-348.08,0.00022191,2]
[361929976,1747896642485,-446.02,0.00022191,2]
[361929977,1747896642496,-430.0,0.00022191,2]
[361929978,1747896642506,-467.8,0.00022191,2]
[361929979,1747896642517,-430.0,0.00022191,2]
[361929980,1747896642527,-430.0,0.00022191,2]
[361929981,1747896642538,-430.0,0.00022191,2]
[361929982,1747896642548,-430.0,0.00022191,2]
[361929983,1747896642558,-430.0,0.00022191,2]
[361929984,1747896642570,-430.0,0.00022191,2]
[361929985,1747896642580,-430.0,0.00022191,2]
[361929986,1747896642590,-430.0,0.00022191,2]
[361929987,1747896642600,-430.0,0.00022191,2]
[361929988,1747896642611,-430.0,0.00022191,2]
[361929989,1747896642621,-430.0,0.00022191,2]
[361929990,1747896642631,-430.0,0.00022191,2]
[361929991,1747896642642,-805.2,0.00022191,2]
[361929992,1747896642651,-1207.8,0.00022191,2]
[361929993,1747896642662,-430.0,0.00022191,2]
[361929994,1747896642673,-430.0,0.00022191,2]
[361929995,1747896642683,-618.02,0.00022191,2]
[361929996,1747896642694,-430.0,0.00022191,2]
[361929997,1747896642704,-430.0,0.00022191,2]
[361929998,1747896642715,-430.0,0.00022191,2]
[361929999,1747896642725,-430.0,0.00022191,2]
[361930000,1747896642736,-430.0,0.00022191,2]
[361930001,1747896642746,-430.0,0.00022191,2]
[361930002,1747896642756,-430.0,0.00022191,2]
[361930003,1747896642766,-430.0,0.00022191,2]
[361930004,1747896642778,-430.0,0.00022191,2]
[361930005,1747896642788,-275.59575239,0.00022191,2]